{"text_format":"3","workbook":"xlsx","n_sheets":1,"sheets":["Relatório de Despesas"],"not_rendered":{"defined_names":4},"read":"whole","date_system":"1900"}

{"sheet":"Relatório de Despesas","index":0,"n_rows":14,"n_cols":14,"rows_kept":14,"merged":[[0,1,0,5],[2,3,2,5],[2,6,2,7],[2,8,2,10],[4,3,4,5],[4,6,4,7],[4,8,4,10]]}
[null,"Relatório de Despesas de Viagens"]
[]
[null,"Nome","Constância Botas","Autorizado por",null,null,"Duarte Martins",null,"Reembolso Por Quilómetro",null,null,{"v":0.32,"d":"0.32 €"}]
[]
[null,"Departamento","Vendas","Data de Entrega",null,null,{"$f":"TODAY()","v":"2018-05-14"},null,"Valor Total de Reembolso",null,null,{"$f":"ValorTotalDeReembolso","v":{"v":550.3846011865525,"d":"550.38 €"}}]
[]
[null,"Período",{"$f":"IF(MIN(B10:B13)=MAX(B10:B13),TEXT(MIN(B10:B13),\"dd/mm/aa\"),\"De \"&TEXT(MIN(B10:B13),\"dd/mm/aa\")&\" até \"&TEXT(MAX(B10:B13),\"dd/mm/aa\"))","v":"De 14/04/18 até 19/04/18"}]
[]
[null,"Data","Descrição da Despesa","Passagens Aéreas","Alojamento","Transporte Terrestre \n(Combustível, Aluguer de Automóvel, Táxi)","Refeições e Gorjetas","Conferências e Seminários","Quilómetros","Reembolso Quilométrico","Diversos","Taxa de Câmbio","Moeda da Despesa","Total"]
[null,{"$f":"TODAY()-30","v":"2018-04-14"},"Viagem para o escritório do cliente",{"v":350,"d":"350.00"},{"v":150,"d":"150.00"},{"v":45,"d":"45.00"},{"v":12,"d":"12.00"},{"v":50,"d":"50.00"},{"v":35,"d":"35.00"},{"$f":"IF('Relatório de Despesas'!I10<>\"\",'Relatório de Despesas'!I10*TaxaDeQuilometragem,\"\")","v":{"v":11.200000000000001,"d":"11.20"}},null,{"v":1.517,"d":"1.52"},"CAD",{"$f":"IFERROR(IF(OR('Relatório de Despesas'!$L10=\"\",'Relatório de Despesas'!$L10=1),SUM('Relatório de Despesas'!$J10:$K10,'Relatório de Despesas'!$D10:$H10)*1,SUM('Relatório de Despesas'!$J10:$K10,'Relatório de Despesas'!$D10:$H10)/'Relatório de Despesas'!$L10),\"\")","v":{"v":407.5148319050759,"d":"407.51 €"}}]
[null,{"$f":"TODAY()-30","v":"2018-04-14"},"Almoço com o cliente",{"$nulls":3},{"v":24.3,"d":"24.30"},null,{"v":12,"d":"12.00"},{"$f":"IF('Relatório de Despesas'!I11<>\"\",'Relatório de Despesas'!I11*TaxaDeQuilometragem,\"\")","v":3.84},null,{"v":1.517,"d":"1.52"},"CAD",{"$f":"IFERROR(IF(OR('Relatório de Despesas'!$L11=\"\",'Relatório de Despesas'!$L11=1),SUM('Relatório de Despesas'!$J11:$K11,'Relatório de Despesas'!$D11:$H11)*1,SUM('Relatório de Despesas'!$J11:$K11,'Relatório de Despesas'!$D11:$H11)/'Relatório de Despesas'!$L11),\"\")","v":{"v":18.5497692814766,"d":"18.55 €"}}]
[null,"2018-04-14","Seminário da tarde",{"$nulls":4},{"v":100,"d":"100.00"},{"v":6,"d":"6.00"},{"$f":"IF('Relatório de Despesas'!I12<>\"\",'Relatório de Despesas'!I12*TaxaDeQuilometragem,\"\")","v":1.92},null,{"v":1,"d":"1.00"},"EUR",{"$f":"IFERROR(IF(OR('Relatório de Despesas'!$L12=\"\",'Relatório de Despesas'!$L12=1),SUM('Relatório de Despesas'!$J12:$K12,'Relatório de Despesas'!$D12:$H12)*1,SUM('Relatório de Despesas'!$J12:$K12,'Relatório de Despesas'!$D12:$H12)/'Relatório de Despesas'!$L12),\"\")","v":{"v":101.92,"d":"101.92 €"}}]
[null,{"$f":"TODAY()-25","v":"2018-04-19"},"Viagem para o aeroporto",{"$nulls":5},{"v":70,"d":"70.00"},{"$f":"IF('Relatório de Despesas'!I13<>\"\",'Relatório de Despesas'!I13*TaxaDeQuilometragem,\"\")","v":{"v":22.400000000000002,"d":"22.40"}},null,{"v":1,"d":"1.00"},"EUR",{"$f":"IFERROR(IF(OR('Relatório de Despesas'!$L13=\"\",'Relatório de Despesas'!$L13=1),SUM('Relatório de Despesas'!$J13:$K13,'Relatório de Despesas'!$D13:$H13)*1,SUM('Relatório de Despesas'!$J13:$K13,'Relatório de Despesas'!$D13:$H13)/'Relatório de Despesas'!$L13),\"\")","v":{"v":22.400000000000002,"d":"22.40 €"}}]
[null,"Total",null,{"$f":"SUBTOTAL(109,Despesas[Passagens Aéreas])","v":{"v":350,"d":"350.00"}},{"$f":"SUBTOTAL(109,Despesas[Alojamento])","v":{"v":150,"d":"150.00"}},{"$f":"SUBTOTAL(109,Despesas[Transporte Terrestre \n(Combustível, Aluguer de Automóvel, Táxi)])","v":{"v":45,"d":"45.00"}},{"$f":"SUBTOTAL(109,Despesas[Refeições e Gorjetas])","v":{"v":36.3,"d":"36.30"}},{"$f":"SUBTOTAL(109,Despesas[Conferências e Seminários])","v":{"v":150,"d":"150.00"}},{"$f":"SUBTOTAL(109,Despesas[Quilómetros])","v":{"v":123,"d":"123.00"}},{"$f":"SUBTOTAL(109,Despesas[Reembolso Quilométrico])","v":39.36},{"$f":"SUBTOTAL(109,Despesas[Diversos])","v":{"v":0,"d":"0.00"}},null,null,{"$f":"SUBTOTAL(109,Despesas[Total])","v":{"v":550.3846011865525,"d":"550.38 €"}}]